Cogmind - Beta 13 @@@ ROGUE MODE // 2024.05.16 @ 23:26:48 Player: rel Result: Destroyed by as-86642 with Assembled Rifle Performance ------------- Evolutions (0) 0 Regions Visited (3) 600 Robots Destroyed (25) 125 Value Destroyed (414) 414 Prototype IDs (3) 60 Alien Tech Used (0) 0 Bonus (233) 233 TOTAL SCORE: 1432 Bonus ------- Aligned with FarCom 300 Friendly Fire -67 Cogmind --------- Core Integrity 0/250 Matter 107/300 Energy 99/100 System Corruption 1% Temperature Cool (0) Movement Core (400) Ox7 Location -10/Exiles Parts ------- > --- POWER (1) -------- (None) > --- PROPULSION (2) --- (None) > --- UTILITY (2) ------ Large Storage Unit > --- WEAPON (2) ------- Hammer > --- INVENTORY (15) --- Structural Scanner Transport Network Coupler Core Shielding EM Pulse Gun Small Laser Peak State ------------ > --- POWER ------------ Light Ion Engine > --- PROPULSION ------- Wheel Wheel > --- UTILITY ---------- Superbattery Structural Scanner > --- WEAPON ----------- Hammer > --- INVENTORY -------- Large Storage Unit Transport Network Coupler Core Shielding EM Pulse Gun Small Laser [Rating: 15] Favorites ----------- Power Light Ion Engine Engine Light Ion Engine Propulsion Wheel Wheel Wheel Utility Large Storage Unit Device Structural Scanner Storage Large Storage Unit Protection Core Shielding Weapon Hammer Energy Gun Medium Laser Launcher Grenade Launcher Special Weapon Field Lobotomy Kit Impact Weapon Hammer Build | -11 -10 -10 -10 ------- Run | Yrd Mat Min Exi Slots Evolved . | . . . . Power . | . . . . Propulsion . | . . . . Utility . | . . . . Weapon . | . . . . Parts Attached 27 | 7 4 12 4 Power 4 | 1 1 2 . Engine 4 | 1 1 2 . Core . | . . . . Reactor . | . . . . Propulsion 5 | 2 . 3 . Treads . | . . . . Leg . | . . . . Wheel 5 | 2 . 3 . Hover . | . . . . Flight . | . . . . Utility 9 | 1 2 3 3 Device 2 | . . 1 1 Storage 5 | 1 1 1 2 Processor . | . . . . Hackware . | . . . . Protection 2 | . 1 1 . Artifact . | . . . . Weapon 9 | 3 1 4 1 Energy Gun 5 | 3 . 2 . Energy Cannon . | . . . . Ballistic Gun . | . . . . Ballistic Cannon . | . . . . Launcher 1 | . 1 . . Special Weapon 1 | . . . 1 Impact Weapon 2 | . . 2 . Slashing Weapon . | . . . . Piercing Weapon . | . . . . Special Melee Weapon . | . . . . Unidentified Prototypes 3 | . . . 3 Parts Lost 10 | . 3 3 4 Power 3 | . 1 1 1 Propulsion 4 | . 1 1 2 Utility . | . . . . Weapon 3 | . 1 1 1 Highest Loss Streak 4 | . 2 3 4 To Critical Strikes 1 | . . . 1 Average Slot Usage (%) 78 | . 80 59 84 Engine 12 | . 13 9 14 Wheel 21 | . 18 12 27 Device 5 | . . 4 9 Storage 13 | . 14 9 14 Protection 5 | . 9 9 . Energy Gun 5 | . 13 2 . Launcher 4 | . 11 1 . Special Weapon 1 | . . . 4 Impact Weapon 8 | . . 10 14 Naked Turns . | . . . . Heaviest Build 33 | 13 27 28 33 Greatest Support 26 | 26 26 20 20 Greatest Overweight (x) 9 | 2 1 9 7 Average Overweight (x) . | . . . 1 Largest Inventory Capacity 15 | 8 15 15 15 Average Capacity 12 | 6 9 11 14 Most Carried 6 | 5 6 5 6 Average Carried 4 | 2 3 4 4 Final Capacity 15 | 8 15 15 15 Final Carried 5 | 2 5 4 5 Class Distribution -------------------- 100% | Mutant Dominant Class ---------------- Mutant | -10/Materials Mutant | -10/Mines Mutant | -10/Exiles Resources | -11 -10 -10 -10 ----------- Run | Yrd Mat Min Exi Matter Collected 415 | 242 86 87 . Remotely . | . . . . Salvage Created 362 | . 232 117 13 Parts 40 | . 21 19 . Haulers Intercepted 2 | . 2 . . Recyclers Shooed 1 | . 1 . . Parts Field Recycled . | . . . . Retrieved Matter . | . . . . Parts Self-Destructed . | . . . . Prevented . | . . . . Kills | -11 -10 -10 -10 ------- Run | Yrd Mat Min Exi Combat Hostiles Destroyed 14 | . 11 3 . AOE 14 | . 11 3 . Classes Destroyed 7 | . 5 2 . Worker 5 | . . 5 . Builder 2 | . . 2 . Hauler 2 | . 2 . . Recycler 1 | . 1 . . Operator 1 | . 1 . . Swarmer 9 | . 6 3 . Grunt 5 | . 5 . . Best Kill Streak 14 | . 14 6 . Combat Bots Only 11 | . 11 3 . Max Kills in Single Turn 4 | . 3 4 . Gunslinging . | . . . . Exploded 2 | . 2 2 . Melee . | . . . . Uniques/NPCs Destroyed . | . . . . Combat | -11 -10 -10 -10 -------- Run | Yrd Mat Min Exi Hostile Shots Fired 76 | . 27 2 47 Missed 17 | . 5 . 12 Damage Taken 996 | . 426 89 481 Core 255 | . 129 12 114 Absorbed by Shields . | . . . . Redirected to Shielding 2 | . . 2 . Core Remaining (%) 100 | 100 . . . Volleys Fired 20 | . 15 2 3 Largest 2 | . 2 1 1 Hottest 80 | . 80 30 . Shots Fired 23 | . 18 2 3 Gun 3 | . 3 . . Cannon . | . . . . Launcher 17 | . 15 2 . Special 3 | . . . 3 Kinetic . | . . . . Thermal 3 | . 3 . . Explosive 17 | . 15 2 . Electromagnetic . | . . . . Robot Hit Streak 6 | . 6 1 4 Robot Miss Streak 1 | . 1 . . Penetration Max . | . . . . Secondary Targets . | . . . . Shots Hit Robots 20 | . 10 5 5 Core Hits 38 | . 24 13 1 Critical Kills . | . . . . Critical Parts Destroyed . | . . . . Critical Strikes . | . . . . Melee Attacks 6 | . . 4 2 Impact 6 | . . 4 2 Slashing . | . . . . Piercing . | . . . . Sneak Attacks 5 | . . 4 1 Combat Hostiles . | . . . . Follow-up Attacks . | . . . . Damage Inflicted 2028 | . 1196 695 137 Guns . | . . . . Cannons . | . . . . Explosions 1746 | . 1196 550 . Melee 282 | . . 145 137 Ramming . | . . . . Kinetic . | . . . . Thermal 534 | . 69 465 . Explosive 1212 | . 1127 85 . Electromagnetic . | . . . . Impact 282 | . . 145 137 Slashing . | . . . . Piercing . | . . . . Highest Corruption 1 | . 1 1 1 Average Corruption 1 | . 1 1 1 Corruption Purged . | . . . . Corruption Blocked . | . . . . Effects 4 | . 1 . 3 Matter Fused 3 | . 1 . 2 Data Loss (minor) 1 | . . . 1 Overload Shots . | . . . . Overflow Damage 262 | . 82 111 69 Projectiles . | . . . . Explosions 193 | . 82 111 . Melee 69 | . . . 69 Knockbacks 1 | . . . 1 Impact 1 | . . . 1 Kinetic . | . . . . Secondary . | . . . . Self-Inflicted Damage 283 | . 210 73 . Shots 11 | . 8 3 . Rammed . | . . . . Targets Rammed . | . . . . Kicked . | . . . . Crushed . | . . . . Highest Temperature 42 | . 42 14 . Average Temperature 13 | . 14 9 . Received Heat Transfer 191 | . 51 . 140 Siege Activations . | . . . . Robots Corrupted . | . . . . Combat Hostiles . | . . . . Parts Fried . | . . . . Impact Corruptions 11 | . . . 11 Robots Melted . | . . . . Combat Hostiles . | . . . . Parts Melted . | . . . . Heat Transferred 750 | . 50 700 . Parts Sabotaged . | . . . . Parts Stolen . | . . . . Parts Stripped . | . . . . Power Chain Reactions . | . . . . Alert | -11 -10 -10 -10 ------- Run | Yrd Mat Min Exi Peak Influence 456 | . 456 363 . Initial 177 | . . 177 . Average 272 | . 282 327 . Maximum Alert Level 2 | . 2 1 . Low Security (%) 28 | 100 26 12 . Level 1 56 | . 48 87 . Level 2 15 | . 24 . . Level 3 . | . . . . Level 4 . | . . . . Level 5 . | . . . . High Security . | . . . . Max Security . | . . . . Squads Dispatched . | . . . . Investigation . | . . . . Extermination . | . . . . Reinforcement . | . . . . Assault . | . . . . Garrison . | . . . . Intercept . | . . . . Searches Triggered . | . . . . Construction Impeded . | . . . . Haulers Reinforced . | . . . . Active Scanning Responses . | . . . . Cargo Convoy Interrupts . | . . . . Stealth | -11 -10 -10 -10 --------- Run | Yrd Mat Min Exi Distress Signals . | . . . . Communications Jammed . | . . . . Distress Signals . | . . . . Times Spotted 29 | . 18 3 8 Peak Tracking Total 8 | . 5 3 8 Tactical Retreats 1 | . 1 . . Traps | -11 -10 -10 -10 ------- Run | Yrd Mat Min Exi Traps Triggered . | . . . . Indirectly . | . . . . Trap Hack Attempts . | . . . . Triggered . | . . . . Disarmed . | . . . . Reprogrammed . | . . . . Reused . | . . . . Traps Extracted . | . . . . Installed . | . . . . Triggered . | . . . . Machines | -11 -10 -10 -10 ---------- Run | Yrd Mat Min Exi Machines Disabled 10 | . 4 6 . Max in Single Turn 4 | . 2 4 . Machines Repaired . | . . . . Machines Dismantled . | . . . . Machines Sabotaged . | . . . . Overloaded Fab Kills . | . . . . Hacking | -11 -10 -10 -10 --------- Run | Yrd Mat Min Exi Machines Accessed 5 | . 4 . 1 Terminals 4 | . 4 . . Fabricators . | . . . . Repair Stations . | . . . . Recycling Units . | . . . . Scanalyzers . | . . . . Garrison Access . | . . . . Total Hacks 32 | . 9 . 23 Successful 26 | . 3 . 23 Failed 6 | . 6 . . Catastrophic 1 | . 1 . . Database Lockouts . | . . . . Manual 1 | . . . 1 Terminals 9 | . 9 . . Fabricators . | . . . . Repair Stations . | . . . . Recycling Units . | . . . . Scanalyzers . | . . . . Garrison Access . | . . . . Terminal Hacks 26 | . 3 . 23 Record 23 | . . . 23 Branch Access Points 1 | . 1 . . Locate Traps 1 | . 1 . . Zone Layout 1 | . 1 . . Fabricator Hacks . | . . . . Repair Station Hacks . | . . . . Recycling Unit Hacks . | . . . . Scanalyzer . | . . . . Garrison Access Hacks . | . . . . Unauthorized Hacks . | . . . . Terminals . | . . . . Fabricators . | . . . . Repair Stations . | . . . . Recycling Units . | . . . . Scanalyzers . | . . . . Garrison Access . | . . . . Data Cores Recovered . | . . . . Used . | . . . . Hacking Detections 3 | . 3 . . Full Trace Events 1 | . 1 . . Feedback Events 1 | . 1 . . Corruption 1 | . 1 . . Feedback Blocked . | . . . . Robot Schematics Acquired . | . . . . Robots Built . | . . . . Authchips . | . . . . Time . | . . . . Total Robot Build Rating . | . . . . Part Schematics Acquired . | . . . . Parts Built . | . . . . Authchips . | . . . . Time . | . . . . Total Part Build Rating . | . . . . Parts Repaired . | . . . . Time . | . . . . Parts Recycled . | . . . . Recycled Matter . | . . . . Retrieved Matter . | . . . . Retrieved Components . | . . . . Parts Scanalyzed . | . . . . Part Schematics Acquired . | . . . . Parts Damaged . | . . . . Bothacking | -11 -10 -10 -10 ------------ Run | Yrd Mat Min Exi Used RIF Installer . | . . . . Robots Hacked . | . . . . Non-combat . | . . . . Combat . | . . . . Robot Hacks Applied . | . . . . Relay Couplers Released . | . . . . Fabnet Peak Effective % . | . . . . Robots Rewired . | . . . . Allies Hacked . | . . . . Hacks Repelled . | . . . . Allies | -11 -10 -10 -10 -------- Run | Yrd Mat Min Exi Total Allies 2 | . . . 2 Largest Group 1 | . . . 1 Highest-Rated Group 9 | . . . 9 Highest-Rated Ally 9 | . . . 9 Total Orders . | . . . . Ally Attacks 1 | . . . 1 Total Damage 70 | . . . 70 Kills . | . . . . Allies Corrupted . | . . . . Allies Melted . | . . . . Field Lobotomies 2 | . . . 2 Intel | -11 -10 -10 -10 ------- Run | Yrd Mat Min Exi Robot Analysis Total . | . . . . Derelict Logs Recovered . | . . . . Drone Launches . | . . . . Drone Recoveries . | . . . . Exploration | -11 -10 -10 -10 ------------- Run | Yrd Mat Min Exi Turns Passed 1017 | 46 349 165 457 Spaces Moved 795 | 40 306 151 298 Core 102 | 21 . 80 1 Treads . | . . . . Legs . | . . . . Wheels 693 | 19 306 71 297 Hover . | . . . . Flight . | . . . . Fastest Speed 50 | 50 90 50 95 Average Speed 95 | 80 99 87 96 Slowest Speed 500 | 150 115 500 400 Overloaded Moves . | . . . . Propulsion Burnouts . | . . . . Robots Hopped . | . . . . Cave-ins Triggered . | . . . . Exploration Rate (%) 40 | 3 72 25 61 Regions Visited 3 Branch Regions 2 Pre-discovered Areas 1 | . . . 1 Known Exits Taken 1 | . 1 . . Unknown Exits Taken 2 | 1 . 1 . Scrap Searched . | . . . . Spaces Dug 3 | . 3 . . Terrain Destroyed 102 | . 78 24 . Melee . | . . . . Projectile . | . . . . AOE 102 | . 78 24 . Terrain Rammed . | . . . . Walls Destroyed . | . . . . Machines Disabled . | . . . . Actions | -11 -10 -10 -10 --------- Run | Yrd Mat Min Exi Total 1020 | 52 331 175 462 Wait 123 | . . . 123 Move 792 | 39 305 150 298 Hop . | . . . . Pick Up 16 | 6 6 1 3 Fast Attach 5 | 2 . 3 . Attach 13 | 4 2 6 1 Detach 4 | . . 4 . Swap 9 | 1 2 3 3 Drop 5 | . 1 2 2 Fire 20 | . 15 2 3 Melee 6 | . . 4 2 Ram . | . . . . Kick . | . . . . Crush . | . . . . Escape Stasis . | . . . . Rewire 27 | . . . 27 Trap . | . . . . Miscellaneous . | . . . . Route ------- -11/Scrapyard -10/Materials (discovered 4 exits: [*Mat x2] / *Min x2) -10/Mines (discovered 3 exits: [*Mat x2] / *Exi) -10/Exiles History --------- Turn | Location | Event 20 | -11/Scrapyard | Discovered new exit (range 16) 47 | -11/Scrapyard | Entered Materials 67 | -10/Materials | Discovered new exit (range 5) 164 | -10/Materials | Discovered new exit (range 14) 182 | -10/Materials | Destroyed 11 combat bots 219 | -10/Materials | Discovered new exit (range 15) 242 | -10/Materials | Identified exit to Mines 308 | -10/Materials | Build established: Mutant 313 | -10/Materials | Core integrity fell below 50% 340 | -10/Materials | Discovered new exit (range 14) 396 | -10/Materials | Entered Mines 403 | -10/Mines | Discovered new exit (range 14) 411 | -10/Mines | Discovered new exit (range 9) 450 | -10/Mines | Lost 3 parts (1p1n1w) 557 | -10/Mines | Deemed a non-threat by the Exiles lab entrance 557 | -10/Mines | Discovered new exit (range 5) 561 | -10/Mines | Entered Exiles 584 | -10/Exiles | Met 8R-AWN 600 | -10/Exiles | Met EX-HEX 652 | -10/Exiles | Met EX-DEC 802 | -10/Exiles | Learned location of Zion (-6) 828 | -10/Exiles | Met EX-BIN 841 | -10/Exiles | Aligned with FarCom system 842 | -10/Exiles | Given EX-Vault access code 866 | -10/Exiles | Opened EX-Vault 871 | -10/Exiles | Found Prototype Storage 872 | -10/Exiles | Identified Superbattery 876 | -10/Exiles | Found Prototype Device 877 | -10/Exiles | Identified Trap Reconfigurator 882 | -10/Exiles | Found Prototype Special Weapon 883 | -10/Exiles | Identified Field Lobotomy Kit 906 | -10/Exiles | Warned to stay clear of 0b10 Research branches 995 | -10/Exiles | Attacked by the Exiles 1007 | -10/Exiles | Assimilated as-00534 with FLK Orb 1012 | -10/Exiles | Assimilated as-12748 with FLK Orb 1013 | -10/Exiles | Core integrity fell below 20% 1018 | -10/Exiles | Destroyed by as-86642 with Assembled Rifle Last Messages --------------- 01012_ as-12748 assimilated. 01013_ HV Slug penetrates as-12748. 01013_ as-12748 suffers critical hit (Destroy). 01013_ as-12748 destroyed. 01013_ Penetrated by HV Slug. 01013_ Critical hit (Destroy). 01013_ Field Lobotomy Kit destroyed. 01015_ Penetrated by HV Slug. 01015_ Sneak attack on EX-HEX. 01015_ Destroyed EX Chip 2. 01015_ Destroyed Adv. Transmission Jammer. 01015_ Destroyed EX Chip 1. 01015_ Destroyed EX Chip 2. 01015_ Destroyed EX Chip 1. 01015_ Destroyed EX Chip 2. 01015_ EX-HEX system corrupted by crushing effect. 01015_ EX-HEX knocked back. 01017_ HV Slug penetrates Machine. 01017_ Machine disabled. 01017_ HV Slug penetrates Machine. Map ----- +----------------------------------------------------+ | ???? "###### ###"""""""##???????????????????? | | ??????????### ###"""""""##???????????????????? | | ??????????### ###"" """"##???????????????????? | | ??????????##" """"##???????????????????? | | ??????????##" """##???????????????????? | | ??????????##" """##???????????????????? | | #####?????##" """##???????????????????? | | #####?????##" """##???????????????????? | | """##?????##" """##???????????????????? | | """##?????### """""???????????????????? | | ##?????### """##???????????????????? | | ##??????##" "X" """""???????????????????? | | "##??????##" """ # ???????????????????? | | ""##?????###" """""""""# ???????????????????? | | ""##????####" ########### ???????????????????? | | ###########"" ############???????????????????? | | ##########"" ###????????????????????????????? | | #"###""""""" ####?#############?????????????? | | """""" " "" ##################????????????? | | "" """ " #####"""""""""####???????????? | | " " "" """"###???????????? | | " " ##???????????? | | " """##?????????### | | "%"###???????#### | | " "#####?????###" | | @ a%a ""####????###" | | """""" % """##??#####" | | ######""" "###?#### | | ""########### ###### | | """####??#######""" c ##### | | """####???????###"""" ### | | ""##############"" # | | ##############"""" ## | | ## ####""" a ""## | | """" #"""### | | a ######## | | ########? | | " ####?????? | | " "" """ ""###??????? | | ""## ##""" " " ""#" "###???????? | | ""#### ######""" """##"""""""####???????? | | """"##### ########""""#############????????? | | """##### #######################??????????? | | ""#####! "!##??#######???????????????????? | | """######" !##????????????????????????????? | | ####?##" "##????????????????????????????? | | ####??##!!""!"##????????????????????????????? | | ###???##########????????????????????????????? | | ###????##########????????????????????????????? | | # ##???????????????????????????????????????????? | +----------------------------------------------------+ Best States ------------- Heat Dissipation 25 Energy Generation 10 Energy Capacity 250 Matter Stores 272 Matter Capacity 300 Sight Range 16 Terrain Scan Density 10 Core Shielding 20 Evasion (%) 50 Item Schematics ----------------- None Robot Schematics ------------------ None Fabricated ------------ Nothing Alien Tech Used ----------------- None Achievements -------------- None Challenges ------------ None Game ------ Seed RainbowEncryptedProtomatter Manual? 0 Play Time 00:13:53 Cumulative 22.7 hours Start 2024.05.16 @ 22:34:34 End 2024.05.16 @ 23:26:48 Sessions 1 Manual Loads 0 Difficulty Rogue Special Mode None Game No. 31 Rogue 31 Adventurer 0 Explorer 0 Win Type - Total 0 Types 0/0/0/0/0/0/0/0/0 Lore% 21 Gallery% 30 Achievement% 21 Wizard Run 0 Options --------- Layout 0 ASCII 0 Keyboard 0 Movement Mouse Keybinds 0 Fullscreen 1 Font 24/Smallcaps Map View 76x50 Zoom Use 0% Tactical HUD 1 Map Filters NONE Filters NONE Steam 1 RUN: 0f0933e4-51bd-4ca8-9d9f-0712a084bb08